[Event "Titled Tuesday Blitz June 6 Early 2023"]
[White "Afanasieva, Alexandra"]
[Black "Vyatkin, Dmitry"]
[WhiteFideId "34126926"]
[BlackFideId "4171900"]
[WhiteElo "1736"]
[BlackElo "2279"]
[Result "0-1"]
[Round "11"]
[TimeControl "180+2"]
[Date "2023.06.06"]
[WhiteClock "0:00:15"]
[BlackClock "0:01:37"]
[Board "106"]

1. e4 {[%clk 0:02:59]}  e6 {[%clk 0:02:59]} 2. d4 {[%clk 0:02:59]}  d5 {[%clk 0:02:59]} 3. Nc3 {[%clk 0:02:59]}  Nf6 {[%clk 0:02:59]} 4. Bg5 {[%clk 0:02:59]}  Be7 {[%clk 0:02:59]} 5. Bxf6 {[%clk 0:02:51]}  Bxf6 {[%clk 0:02:59]} 6. Nf3 {[%clk 0:02:51]}  O-O {[%clk 0:02:54]} 7. Bd3 {[%clk 0:02:48]}  c5 {[%clk 0:02:54]} 8. e5 {[%clk 0:02:47]}  Be7 {[%clk 0:02:52]} 9. O-O {[%clk 0:02:41]}  cxd4 {[%clk 0:02:51]} 10. Nxd4 {[%clk 0:02:41]}  Nc6 {[%clk 0:02:51]} 11. Nxc6 {[%clk 0:02:34]}  bxc6 {[%clk 0:02:51]} 12. Qh5 {[%clk 0:02:14]}  g6 {[%clk 0:02:50]} 13. Qf3 {[%clk 0:02:13]}  f6 {[%clk 0:02:48]} 14. Qg3 {[%clk 0:02:10]}  fxe5 {[%clk 0:02:46]} 15. Bxg6 {[%clk 0:02:08]}  Bh4 {[%clk 0:02:44]} 16. Qg4 {[%clk 0:01:50]}  Rf4 {[%clk 0:02:44]} 17. Bxh7+ {[%clk 0:01:28]}  Kxh7 {[%clk 0:02:43]} 18. Qh5+ {[%clk 0:01:28]}  Kg7 {[%clk 0:02:43]} 19. Qxe5+ {[%clk 0:01:27]}  Qf6 {[%clk 0:02:41]} 20. Qc7+ {[%clk 0:01:27]}  Qf7 {[%clk 0:02:37]} 21. Qe5+ {[%clk 0:01:02]}  Kg8 {[%clk 0:02:15]} 22. g3 {[%clk 0:00:51]}  Rf5 {[%clk 0:02:15]} 23. Qe2 {[%clk 0:00:52]}  Bf6 {[%clk 0:02:11]} 24. Na4 {[%clk 0:00:48]}  e5 {[%clk 0:02:02]} 25. f4 {[%clk 0:00:40]}  exf4 {[%clk 0:01:59]} 26. gxf4 {[%clk 0:00:38]}  Rh5 {[%clk 0:01:47]} 27. Kh1 {[%clk 0:00:31]}  Bf5 {[%clk 0:01:47]} 28. Nc5 {[%clk 0:00:26]}  Re8 {[%clk 0:01:42]} 29. Qg2+ {[%clk 0:00:18]}  Kh8 {[%clk 0:01:41]} 30. Rae1 {[%clk 0:00:18]}  Rg8 {[%clk 0:01:40]} 31. Qf3 {[%clk 0:00:17]}  Qh7 {[%clk 0:01:40]} 32. Rf2 {[%clk 0:00:15]}  Bd4 {[%clk 0:01:37]} 0-1


[Site "https://www.chess.com"]

[Event "Titled Tuesday Blitz June 6 Early 2023"]
[White "Koridze, Lile"]
[Black "mohsengabr2002"]
[WhiteFideId "13612514"]
[WhiteElo "2047"]
[BlackElo "2253"]
[Result "1/2-1/2"]
[Round "11"]
[TimeControl "180+2"]
[Date "2023.06.06"]
[WhiteClock "0:00:19"]
[BlackClock "0:01:04"]
[Board "107"]

1. d4 {[%clk 0:03:00]}  f6 {[%clk 0:03:00]} 2. e4 {[%clk 0:02:57]}  g6 {[%clk 0:03:00]} 3. c4 {[%clk 0:02:56]}  e6 {[%clk 0:03:00]} 4. Nf3 {[%clk 0:02:56]}  Nh6 {[%clk 0:03:00]} 5. e5 {[%clk 0:02:56]}  Nf7 {[%clk 0:03:00]} 6. exf6 {[%clk 0:02:56]}  Qxf6 {[%clk 0:03:01]} 7. Nc3 {[%clk 0:02:52]}  Bb4 {[%clk 0:02:58]} 8. Qc2 {[%clk 0:02:46]}  d5 {[%clk 0:02:55]} 9. cxd5 {[%clk 0:02:45]}  exd5 {[%clk 0:02:55]} 10. Bd3 {[%clk 0:02:43]}  c6 {[%clk 0:02:54]} 11. O-O {[%clk 0:02:43]}  O-O {[%clk 0:02:54]} 12. Ne2 {[%clk 0:02:36]}  Bg4 {[%clk 0:02:52]} 13. Nd2 {[%clk 0:02:12]}  Bxe2 {[%clk 0:02:46]} 14. Bxe2 {[%clk 0:02:12]}  Qxd4 {[%clk 0:02:43]} 15. Nf3 {[%clk 0:02:12]}  Qf6 {[%clk 0:02:42]} 16. Qb3 {[%clk 0:02:11]}  Qe7 {[%clk 0:02:13]} 17. a3 {[%clk 0:02:00]}  Qxe2 {[%clk 0:02:10]} 18. Qxb4 {[%clk 0:01:58]}  Qa6 {[%clk 0:01:58]} 19. Bf4 {[%clk 0:01:48]}  Nd7 {[%clk 0:01:58]} 20. Qe7 {[%clk 0:01:45]}  Nb6 {[%clk 0:01:50]} 21. Ng5 {[%clk 0:01:42]}  Rae8 {[%clk 0:01:43]} 22. Qc7 {[%clk 0:01:33]}  Na8 {[%clk 0:01:35]} 23. Qd7 {[%clk 0:01:28]}  Nb6 {[%clk 0:01:30]} 24. Qg4 {[%clk 0:01:25]}  Nxg5 {[%clk 0:01:23]} 25. Bxg5 {[%clk 0:01:25]}  Qc4 {[%clk 0:01:22]} 26. Qh3 {[%clk 0:01:20]}  Rf5 {[%clk 0:01:15]} 27. Be3 {[%clk 0:01:11]}  d4 {[%clk 0:01:11]} 28. Bd2 {[%clk 0:01:10]}  c5 {[%clk 0:01:09]} 29. Rfe1 {[%clk 0:01:05]}  Ref8 {[%clk 0:01:08]} 30. Re7 {[%clk 0:01:00]}  R8f7 {[%clk 0:01:04]} 31. Re8+ {[%clk 0:00:58]}  Rf8 {[%clk 0:01:04]} 32. Re7 {[%clk 0:00:58]}  R8f7 {[%clk 0:01:04]} 33. Re8+ {[%clk 0:00:19]}  Rf8 {[%clk 0:01:04]} 34. Re7 {[%clk 0:00:19]} 1/2-1/2


[Site "https://www.chess.com"]

[Event "Titled Tuesday Blitz June 6 Early 2023"]
[White "Alexanian, Nelli"]
[Black "Manukian, Artak"]
[WhiteFideId "4170539"]
[BlackFideId "13301373"]
[WhiteElo "2071"]
[BlackElo "2130"]
[Result "0-1"]
[Round "11"]
[TimeControl "180+2"]
[Date "2023.06.06"]
[WhiteClock "0:01:59"]
[BlackClock "0:02:20"]
[Board "109"]

1. d4 {[%clk 0:03:00]}  Nf6 {[%clk 0:02:58]} 2. c4 {[%clk 0:03:00]}  g6 {[%clk 0:02:56]} 3. Nc3 {[%clk 0:02:59]}  d5 {[%clk 0:02:56]} 4. cxd5 {[%clk 0:02:43]}  Nxd5 {[%clk 0:02:57]} 5. e4 {[%clk 0:02:43]}  Nxc3 {[%clk 0:02:57]} 6. bxc3 {[%clk 0:02:43]}  Bg7 {[%clk 0:02:58]} 7. Bc4 {[%clk 0:02:42]}  O-O {[%clk 0:02:57]} 8. Ne2 {[%clk 0:02:41]}  c5 {[%clk 0:02:57]} 9. O-O {[%clk 0:02:36]}  Nc6 {[%clk 0:02:53]} 10. Be3 {[%clk 0:02:35]}  Bg4 {[%clk 0:02:46]} 11. f3 {[%clk 0:02:33]}  Na5 {[%clk 0:02:46]} 12. Bd3 {[%clk 0:02:20]}  cxd4 {[%clk 0:02:41]} 13. cxd4 {[%clk 0:02:20]}  Be6 {[%clk 0:02:41]} 14. d5 {[%clk 0:02:16]}  Bxa1 {[%clk 0:02:40]} 15. Qxa1 {[%clk 0:02:10]}  f6 {[%clk 0:02:39]} 16. Bh6 {[%clk 0:02:07]}  Re8 {[%clk 0:02:23]} 17. Nf4 {[%clk 0:02:04]}  Bf7 {[%clk 0:02:23]} 18. Bb5 {[%clk 0:01:59]}  Qb6+ {[%clk 0:02:20]} 0-1


[Site "https://www.chess.com"]

[Event "Titled Tuesday Blitz June 6 Early 2023"]
[White "Womacka, Mathias"]
[Black "Vifleemskaia, Svetlana"]
[WhiteFideId "4611390"]
[BlackFideId "4129490"]
[WhiteElo "2377"]
[BlackElo "1930"]
[Result "0-1"]
[Round "11"]
[TimeControl "180+2"]
[Date "2023.06.06"]
[WhiteClock "0:00:01"]
[BlackClock "0:00:04"]
[Board "110"]

1. e4 {[%clk 0:03:00]}  e5 {[%clk 0:02:58]} 2. Nf3 {[%clk 0:03:00]}  Nc6 {[%clk 0:02:58]} 3. Bb5 {[%clk 0:03:01]}  a6 {[%clk 0:02:57]} 4. Bxc6 {[%clk 0:03:01]}  dxc6 {[%clk 0:02:57]} 5. O-O {[%clk 0:03:01]}  Ne7 {[%clk 0:02:58]} 6. Nxe5 {[%clk 0:02:59]}  Qd4 {[%clk 0:02:57]} 7. Qh5 {[%clk 0:02:56]}  g6 {[%clk 0:02:57]} 8. Qg5 {[%clk 0:02:56]}  Bg7 {[%clk 0:02:48]} 9. Nd3 {[%clk 0:02:56]}  Qxe4 {[%clk 0:02:46]} 10. Re1 {[%clk 0:02:51]}  h6 {[%clk 0:02:41]} 11. Qa5 {[%clk 0:02:17]}  Qd5 {[%clk 0:02:35]} 12. Qxc7 {[%clk 0:02:15]}  Qd8 {[%clk 0:02:31]} 13. Qxd8+ {[%clk 0:02:05]}  Kxd8 {[%clk 0:02:31]} 14. Nc3 {[%clk 0:02:05]}  Nf5 {[%clk 0:02:21]} 15. Ne2 {[%clk 0:01:52]}  Re8 {[%clk 0:02:16]} 16. Kf1 {[%clk 0:01:46]}  g5 {[%clk 0:02:07]} 17. c3 {[%clk 0:01:41]}  Be6 {[%clk 0:01:41]} 18. Nc5 {[%clk 0:01:40]}  Bc8 {[%clk 0:01:18]} 19. d4 {[%clk 0:01:34]}  b6 {[%clk 0:01:18]} 20. Nd3 {[%clk 0:01:20]}  Nh4 {[%clk 0:01:14]} 21. Be3 {[%clk 0:01:15]}  Bf5 {[%clk 0:01:13]} 22. Rad1 {[%clk 0:01:13]}  Be4 {[%clk 0:01:13]} 23. f3 {[%clk 0:01:01]}  Bxf3 {[%clk 0:01:12]} 24. Bxg5+ {[%clk 0:00:55]}  hxg5 {[%clk 0:01:11]} 25. gxf3 {[%clk 0:00:56]}  Nxf3 {[%clk 0:01:10]} 26. Ng3 {[%clk 0:00:50]}  Nxe1 {[%clk 0:01:08]} 27. Nxe1 {[%clk 0:00:51]}  Re6 {[%clk 0:00:59]} 28. Nf3 {[%clk 0:00:38]}  Bf6 {[%clk 0:00:50]} 29. d5 {[%clk 0:00:35]}  cxd5 {[%clk 0:00:49]} 30. Rxd5+ {[%clk 0:00:35]}  Kc7 {[%clk 0:00:50]} 31. Nxg5 {[%clk 0:00:35]}  Bxg5 {[%clk 0:00:49]} 32. Rxg5 {[%clk 0:00:35]}  Rd8 {[%clk 0:00:49]} 33. Rf5 {[%clk 0:00:29]}  Rd1+ {[%clk 0:00:46]} 34. Kg2 {[%clk 0:00:25]}  Rd2+ {[%clk 0:00:46]} 35. Kf3 {[%clk 0:00:23]}  Re7 {[%clk 0:00:45]} 36. h4 {[%clk 0:00:21]}  Rxb2 {[%clk 0:00:44]} 37. a4 {[%clk 0:00:19]}  Rb3 {[%clk 0:00:42]} 38. Ne4 {[%clk 0:00:19]}  Rb1 {[%clk 0:00:39]} 39. h5 {[%clk 0:00:18]}  Rh1 {[%clk 0:00:36]} 40. Ng3 {[%clk 0:00:17]}  Rh4 {[%clk 0:00:33]} 41. a5 {[%clk 0:00:14]}  bxa5 {[%clk 0:00:32]} 42. Rxa5 {[%clk 0:00:14]}  Kb6 {[%clk 0:00:33]} 43. Rf5 {[%clk 0:00:13]}  a5 {[%clk 0:00:33]} 44. Rf6+ {[%clk 0:00:10]}  Ka7 {[%clk 0:00:29]} 45. Nf5 {[%clk 0:00:09]}  Rh3+ {[%clk 0:00:21]} 46. Kg4 {[%clk 0:00:08]}  Rxh5 {[%clk 0:00:13]} 47. Kxh5 {[%clk 0:00:07]}  Rc7 {[%clk 0:00:12]} 48. Nd6 {[%clk 0:00:06]}  Kb8 {[%clk 0:00:07]} 49. Nb5 {[%clk 0:00:05]}  Rc5+ {[%clk 0:00:05]} 50. Kg4 {[%clk 0:00:02]}  Rxb5 {[%clk 0:00:06]} 51. Rxf7 {[%clk 0:00:03]}  Rc5 {[%clk 0:00:05]} 52. Rf2 {[%clk 0:00:01]}  Kb7 {[%clk 0:00:04]} 0-1


[Site "https://www.chess.com"]

[Event "Titled Tuesday Blitz June 6 Early 2023"]
[White "Begunov, Konstantin"]
[Black "Palacio,Igor Da Paz"]
[WhiteFideId "4118510"]
[BlackFideId "2121140"]
[WhiteElo "1993"]
[BlackElo "2126"]
[Result "0-1"]
[Round "11"]
[TimeControl "180+2"]
[Date "2023.06.06"]
[WhiteClock "0:00:09"]
[BlackClock "0:00:05"]
[Board "111"]

1. d4 {[%clk 0:03:00]}  Nf6 {[%clk 0:02:59]} 2. c4 {[%clk 0:03:01]}  g6 {[%clk 0:02:58]} 3. f3 {[%clk 0:03:01]}  c5 {[%clk 0:02:56]} 4. dxc5 {[%clk 0:03:00]}  Qa5+ {[%clk 0:02:56]} 5. Nc3 {[%clk 0:02:59]}  Qxc5 {[%clk 0:02:53]} 6. e4 {[%clk 0:02:59]}  Nc6 {[%clk 0:02:49]} 7. Qd3 {[%clk 0:02:59]}  Nb4 {[%clk 0:02:47]} 8. Qe2 {[%clk 0:02:52]}  Bg7 {[%clk 0:02:28]} 9. Be3 {[%clk 0:02:52]}  Qxe3 {[%clk 0:02:15]} 10. Qxe3 {[%clk 0:02:53]}  Nc2+ {[%clk 0:02:15]} 11. Kf2 {[%clk 0:02:53]}  Nxe3 {[%clk 0:02:16]} 12. Kxe3 {[%clk 0:02:54]}  a6 {[%clk 0:02:12]} 13. Rc1 {[%clk 0:02:47]}  d6 {[%clk 0:02:12]} 14. g3 {[%clk 0:02:47]}  Bd7 {[%clk 0:02:10]} 15. Bh3 {[%clk 0:02:41]}  Bc6 {[%clk 0:02:02]} 16. b3 {[%clk 0:02:38]}  e6 {[%clk 0:01:49]} 17. Nge2 {[%clk 0:02:35]}  Ke7 {[%clk 0:01:47]} 18. Nd4 {[%clk 0:02:32]}  Bd7 {[%clk 0:01:44]} 19. Bg2 {[%clk 0:02:23]}  e5 {[%clk 0:01:30]} 20. Nde2 {[%clk 0:02:19]}  Rac8 {[%clk 0:01:22]} 21. Nd5+ {[%clk 0:01:37]}  Nxd5+ {[%clk 0:01:21]} 22. cxd5 {[%clk 0:01:36]}  Rxc1 {[%clk 0:01:13]} 23. Rxc1 {[%clk 0:01:35]}  Rc8 {[%clk 0:01:14]} 24. Rxc8 {[%clk 0:01:34]}  Bxc8 {[%clk 0:01:15]} 25. Kd3 {[%clk 0:01:20]}  Bh6 {[%clk 0:01:13]} 26. Nc3 {[%clk 0:01:18]}  Kd8 {[%clk 0:01:07]} 27. Nd1 {[%clk 0:01:15]}  Kc7 {[%clk 0:01:05]} 28. Ne3 {[%clk 0:01:15]}  Bxe3 {[%clk 0:01:05]} 29. Kxe3 {[%clk 0:01:15]}  Kb6 {[%clk 0:01:05]} 30. Kd3 {[%clk 0:01:09]}  Kc5 {[%clk 0:00:56]} 31. Kc3 {[%clk 0:01:09]}  a5 {[%clk 0:00:52]} 32. Bf1 {[%clk 0:01:09]}  b5 {[%clk 0:00:48]} 33. a3 {[%clk 0:01:07]}  b4+ {[%clk 0:00:47]} 34. axb4+ {[%clk 0:01:07]}  axb4+ {[%clk 0:00:48]} 35. Kd2 {[%clk 0:01:03]}  Bd7 {[%clk 0:00:47]} 36. Ke3 {[%clk 0:00:59]}  f5 {[%clk 0:00:43]} 37. Be2 {[%clk 0:00:47]}  h6 {[%clk 0:00:40]} 38. h4 {[%clk 0:00:36]}  fxe4 {[%clk 0:00:25]} 39. fxe4 {[%clk 0:00:35]}  g5 {[%clk 0:00:25]} 40. hxg5 {[%clk 0:00:31]}  hxg5 {[%clk 0:00:24]} 41. Bd3 {[%clk 0:00:22]}  Bg4 {[%clk 0:00:23]} 42. Bf1 {[%clk 0:00:22]}  Bd1 {[%clk 0:00:21]} 43. Bc4 {[%clk 0:00:23]}  Bc2 {[%clk 0:00:20]} 44. Kf3 {[%clk 0:00:14]}  Kd4 {[%clk 0:00:14]} 45. Kg4 {[%clk 0:00:14]}  Bxe4 {[%clk 0:00:14]} 46. Kxg5 {[%clk 0:00:15]}  Bxd5 {[%clk 0:00:13]} 47. Bxd5 {[%clk 0:00:13]}  Kxd5 {[%clk 0:00:13]} 48. g4 {[%clk 0:00:14]}  e4 {[%clk 0:00:05]} 49. Kf4 {[%clk 0:00:14]}  Kd4 {[%clk 0:00:06]} 50. g5 {[%clk 0:00:15]}  e3 {[%clk 0:00:07]} 51. g6 {[%clk 0:00:10]}  e2 {[%clk 0:00:05]} 52. g7 {[%clk 0:00:09]}  e1=Q {[%clk 0:00:05]} 53. g8=Q {[%clk 0:00:09]}  Qf1+ {[%clk 0:00:05]} 54. Kg3 {[%clk 0:00:09]}  Qg1+ {[%clk 0:00:05]} 0-1


[Site "https://www.chess.com"]

[Event "Titled Tuesday Blitz June 6 Early 2023"]
[White "Kriti Mayur Patel"]
[Black "Fernandez Siles, Luis"]
[WhiteFideId "35061780"]
[BlackFideId "2209420"]
[WhiteElo "1306"]
[BlackElo "2195"]
[Result "0-1"]
[Round "11"]
[TimeControl "180+2"]
[Date "2023.06.06"]
[WhiteClock "0:00:06"]
[BlackClock "0:00:14"]
[Board "113"]

1. e4 {[%clk 0:03:00]}  c5 {[%clk 0:02:55]} 2. d4 {[%clk 0:03:00]}  cxd4 {[%clk 0:02:54]} 3. c3 {[%clk 0:03:01]}  Nf6 {[%clk 0:02:54]} 4. e5 {[%clk 0:03:01]}  Nd5 {[%clk 0:02:53]} 5. Bc4 {[%clk 0:03:02]}  Nb6 {[%clk 0:02:52]} 6. Bb3 {[%clk 0:03:02]}  d6 {[%clk 0:02:51]} 7. exd6 {[%clk 0:03:02]}  Qxd6 {[%clk 0:02:51]} 8. Nf3 {[%clk 0:03:03]}  Nc6 {[%clk 0:02:49]} 9. O-O {[%clk 0:03:03]}  e6 {[%clk 0:02:39]} 10. Na3 {[%clk 0:03:04]}  Be7 {[%clk 0:02:38]} 11. Nb5 {[%clk 0:03:03]}  Qd8 {[%clk 0:02:38]} 12. Bf4 {[%clk 0:03:01]}  O-O {[%clk 0:02:17]} 13. Nc7 {[%clk 0:02:44]}  Rb8 {[%clk 0:02:15]} 14. Nb5 {[%clk 0:02:23]}  Ra8 {[%clk 0:02:11]} 15. cxd4 {[%clk 0:02:20]}  a6 {[%clk 0:02:09]} 16. Nc3 {[%clk 0:02:07]}  Bf6 {[%clk 0:02:05]} 17. Be3 {[%clk 0:02:04]}  Ne7 {[%clk 0:02:01]} 18. Ne4 {[%clk 0:02:01]}  Ned5 {[%clk 0:02:01]} 19. Rc1 {[%clk 0:01:57]}  Bd7 {[%clk 0:01:52]} 20. a4 {[%clk 0:01:42]}  Nxe3 {[%clk 0:01:38]} 21. fxe3 {[%clk 0:01:40]}  Bc6 {[%clk 0:01:38]} 22. Nxf6+ {[%clk 0:01:14]}  gxf6 {[%clk 0:01:39]} 23. Qd3 {[%clk 0:01:09]}  Kh8 {[%clk 0:01:35]} 24. Bc2 {[%clk 0:01:08]}  f5 {[%clk 0:01:34]} 25. Ne5 {[%clk 0:01:06]}  Bxa4 {[%clk 0:01:25]} 26. b3 {[%clk 0:00:50]}  Bb5 {[%clk 0:01:24]} 27. Nc4 {[%clk 0:00:49]}  Rc8 {[%clk 0:01:21]} 28. Bb1 {[%clk 0:00:48]}  Qg5 {[%clk 0:01:16]} 29. Rf3 {[%clk 0:00:45]}  Rg8 {[%clk 0:01:12]} 30. Rg3 {[%clk 0:00:40]}  Qh5 {[%clk 0:01:04]} 31. e4 {[%clk 0:00:36]}  fxe4 {[%clk 0:00:48]} 32. Qxe4 {[%clk 0:00:31]}  Rxg3 {[%clk 0:00:40]} 33. hxg3 {[%clk 0:00:30]}  Bc6 {[%clk 0:00:39]} 34. Qd3 {[%clk 0:00:23]}  Nd7 {[%clk 0:00:32]} 35. Nd6 {[%clk 0:00:19]}  Rf8 {[%clk 0:00:30]} 36. Rf1 {[%clk 0:00:17]}  f5 {[%clk 0:00:27]} 37. d5 {[%clk 0:00:17]}  Bxd5 {[%clk 0:00:24]} 38. Qd4+ {[%clk 0:00:17]}  Kg8 {[%clk 0:00:22]} 39. b4 {[%clk 0:00:15]}  Nf6 {[%clk 0:00:20]} 40. Qe5 {[%clk 0:00:13]}  Ng4 {[%clk 0:00:18]} 41. Rxf5 {[%clk 0:00:04]}  Qh2+ {[%clk 0:00:15]} 42. Kf1 {[%clk 0:00:04]}  Qxg2+ {[%clk 0:00:15]} 43. Ke1 {[%clk 0:00:04]}  Nxe5 {[%clk 0:00:15]} 44. Rxe5 {[%clk 0:00:03]}  Qxg3+ {[%clk 0:00:14]} 45. Kd2 {[%clk 0:00:03]}  Qxe5 {[%clk 0:00:14]} 46. Kc2 {[%clk 0:00:03]}  Qxd6 {[%clk 0:00:14]} 47. Kb2 {[%clk 0:00:04]}  Rf2+ {[%clk 0:00:14]} 48. Ka3 {[%clk 0:00:05]}  a5 {[%clk 0:00:13]} 49. Bxh7+ {[%clk 0:00:06]}  Kg7 {[%clk 0:00:13]} 50. Ka4 {[%clk 0:00:06]}  Qxb4# {[%clk 0:00:14]} 0-1


[Site "https://www.chess.com"]

[Event "Titled Tuesday Blitz June 6 Early 2023"]
[White "Amitpal, Singh"]
[Black "Shapiro, Daniel"]
[WhiteFideId "5012899"]
[BlackFideId "2001780"]
[WhiteElo "2107"]
[BlackElo "2360"]
[Result "0-1"]
[Round "11"]
[TimeControl "180+2"]
[Date "2023.06.06"]
[WhiteClock "0:00:19"]
[BlackClock "0:00:40"]
[Board "115"]

1. e4 {[%clk 0:02:53]}  c5 {[%clk 0:02:59]} 2. Nf3 {[%clk 0:02:53]}  e6 {[%clk 0:02:59]} 3. d3 {[%clk 0:02:49]}  Nc6 {[%clk 0:02:57]} 4. Nbd2 {[%clk 0:02:50]}  g6 {[%clk 0:02:53]} 5. g3 {[%clk 0:02:51]}  Bg7 {[%clk 0:02:53]} 6. Bg2 {[%clk 0:02:52]}  Nge7 {[%clk 0:02:51]} 7. O-O {[%clk 0:02:52]}  O-O {[%clk 0:02:51]} 8. h4 {[%clk 0:02:53]}  h6 {[%clk 0:02:49]} 9. a4 {[%clk 0:02:49]}  b6 {[%clk 0:02:48]} 10. Nc4 {[%clk 0:02:41]}  d6 {[%clk 0:02:37]} 11. Bd2 {[%clk 0:02:26]}  e5 {[%clk 0:02:21]} 12. Qc1 {[%clk 0:02:16]}  Kh7 {[%clk 0:02:21]} 13. c3 {[%clk 0:02:13]}  f5 {[%clk 0:02:21]} 14. Nh2 {[%clk 0:02:11]}  Be6 {[%clk 0:02:11]} 15. exf5 {[%clk 0:02:10]}  gxf5 {[%clk 0:02:07]} 16. a5 {[%clk 0:02:03]}  d5 {[%clk 0:02:03]} 17. Na3 {[%clk 0:01:40]}  f4 {[%clk 0:01:47]} 18. axb6 {[%clk 0:01:36]}  axb6 {[%clk 0:01:46]} 19. Nb5 {[%clk 0:01:35]}  Rxa1 {[%clk 0:01:35]} 20. Qxa1 {[%clk 0:01:36]}  Bf5 {[%clk 0:01:34]} 21. d4 {[%clk 0:01:32]}  Bd3 {[%clk 0:01:30]} 22. Na7 {[%clk 0:01:25]}  Bxf1 {[%clk 0:01:24]} 23. Nxc6 {[%clk 0:01:18]}  Nxc6 {[%clk 0:01:22]} 24. Qxf1 {[%clk 0:01:10]}  fxg3 {[%clk 0:01:20]} 25. Qd3+ {[%clk 0:01:08]}  e4 {[%clk 0:01:09]} 26. Qxg3 {[%clk 0:01:07]}  cxd4 {[%clk 0:01:05]} 27. h5 {[%clk 0:01:01]}  Qf6 {[%clk 0:01:03]} 28. Ng4 {[%clk 0:00:56]}  Qf5 {[%clk 0:00:58]} 29. Bh3 {[%clk 0:00:48]}  Qxh5 {[%clk 0:00:57]} 30. Kg2 {[%clk 0:00:40]}  Ne5 {[%clk 0:00:48]} 31. cxd4 {[%clk 0:00:34]}  Rf3 {[%clk 0:00:43]} 32. Qh2 {[%clk 0:00:19]}  Nxg4 {[%clk 0:00:40]} 0-1


[Site "https://www.chess.com"]

[Event "Titled Tuesday Blitz June 6 Early 2023"]
[White "Sanchez, Robert"]
[Black "Ziatdinov, Raset"]
[WhiteFideId "2034360"]
[BlackFideId "2015323"]
[WhiteElo "1830"]
[BlackElo "2220"]
[Result "1-0"]
[Round "11"]
[TimeControl "180+2"]
[Date "2023.06.06"]
[WhiteClock "0:01:01"]
[BlackClock "0:00:51"]
[Board "116"]

1. e4 {[%clk 0:03:00]}  e6 {[%clk 0:02:56]} 2. d4 {[%clk 0:02:59]}  d5 {[%clk 0:02:56]} 3. Nc3 {[%clk 0:02:58]}  Nf6 {[%clk 0:02:56]} 4. e5 {[%clk 0:02:58]}  Nfd7 {[%clk 0:02:57]} 5. f4 {[%clk 0:02:58]}  c5 {[%clk 0:02:57]} 6. Nf3 {[%clk 0:02:58]}  Nc6 {[%clk 0:02:58]} 7. Be3 {[%clk 0:02:58]}  a6 {[%clk 0:02:59]} 8. Be2 {[%clk 0:02:58]}  b5 {[%clk 0:03:00]} 9. Qd2 {[%clk 0:02:59]}  Qb6 {[%clk 0:03:00]} 10. O-O {[%clk 0:02:58]}  Bb7 {[%clk 0:02:59]} 11. Nd1 {[%clk 0:02:58]}  cxd4 {[%clk 0:02:57]} 12. Nxd4 {[%clk 0:02:58]}  Bc5 {[%clk 0:02:58]} 13. c3 {[%clk 0:02:58]}  Rc8 {[%clk 0:02:58]} 14. Nf2 {[%clk 0:02:58]}  g6 {[%clk 0:02:56]} 15. Kh1 {[%clk 0:02:54]}  Qa7 {[%clk 0:02:33]} 16. a3 {[%clk 0:02:50]}  Nb6 {[%clk 0:02:27]} 17. Ng4 {[%clk 0:02:43]}  Nc4 {[%clk 0:02:19]} 18. Bxc4 {[%clk 0:02:41]}  dxc4 {[%clk 0:02:19]} 19. Nf6+ {[%clk 0:02:41]}  Ke7 {[%clk 0:02:18]} 20. f5 {[%clk 0:02:16]}  Nxe5 {[%clk 0:02:03]} 21. Bg5 {[%clk 0:02:11]}  Kf8 {[%clk 0:01:57]} 22. fxe6 {[%clk 0:02:03]}  Nd3 {[%clk 0:01:38]} 23. Qe3 {[%clk 0:01:37]}  Qa8 {[%clk 0:01:16]} 24. Nd7+ {[%clk 0:01:31]}  Ke8 {[%clk 0:00:56]} 25. Nxc5 {[%clk 0:01:12]}  Bxg2+ {[%clk 0:00:53]} 26. Kg1 {[%clk 0:01:10]}  Rxc5 {[%clk 0:00:54]} 27. exf7+ {[%clk 0:01:08]}  Kd7 {[%clk 0:00:54]} 28. Qe7+ {[%clk 0:01:00]}  Kc8 {[%clk 0:00:51]} 29. f8=Q+ {[%clk 0:01:01]} 1-0


[Site "https://www.chess.com"]